Workbook

Sheet Údaje
A1: Údaje pracovníka:
A3: Měsíc docházky (číslo): | B3: 1 | H3: Návod na použití: 1. Na listu ÚDAJE upravte modře podbarvená data ve sloupci B podle vašich podmínek; většinou jen jednou upravujete jméno, příjmení, zařazení a pracoviště. 2. Máte-li v daném měsíci pravidelnou výuku a chcete-li této možnosti využít, zaškrtněte pole AKCEPTUJ PRAVIDELNÝ TÝDEN a upravte modře podbarvená data v tabulce PRAVIDELNÝ TÝDEN. 3. Každý měsíc na listu ÚDAJE upravte požadovaný měsíc a stiskněte tlačítko PŘIPRAV. Tím se předepíše list docházky podle právě nastavených údajů. 4. Přepněte se na docházkový list a v orámované žlutě podbarvené oblasti jednotlivých dnů (!) provádějte libovolné změny. Součty v dalších buňkách se přepočítávají samy. 5. Činnosti 3. a 4. můžete libovolněkrát opakovat. Po dosažení požadovaného stavu docházku vytiskněte a podepište, sešit jako XLS(M) soubor zašlete paní sekretářce.
A4: Rok docházky: | B4: 2021
A6: Fond prac. doby při 100% úvazku | B6: =homFPP(rgPozadMesic) -> 168
A7: Fond prac. doby při daném úvazku | B7: =B6/100*rgUvazek -> 168
A9: Jméno: | B9: Jan
A10: Příjmení: | B10: Novák
A12: Zařazení (THP, AP, D): | B12: AP
A13: Úvazek %: | B13: 100
A14: Stálé pracoviště: | B14: A-999
A16: Základní prac. doba OD (čas): | B16: 08:00:00
A17: Základní prac. doba DO (čas): | B17: 13:30:00
A19: Volitelný začátek (čas): | B19: 07:00:00
A20: Začátek přestávky (čas): | B20: 11:30:00
A21: Konec přestávky (čas): | B21: =rgPrestZac+rgDelkaPrestavky/60/24 -> 12:00:00
A22: Volitelný konec (čas): | B22: =rgStdZac+(rgStdDoba+rgDelkaPrestavky/60)/24 -> 15:30:00 | C22: Diference:
A23: Standardní doba (číslo): | B23: =rgUvazek*rgStdPracDoba/100 -> 8 | C23: =24*(rgStdKon-rgPrestKon+rgPrestZac-rgStdZac)-rgStdDoba -> 0
A25: Pravidelný týden: | B25: Příchod (čas) | C25: Přest.od (čas) | D25: Přest.do (čas) | E25: Odchod (čas) | F25: Odprac. (číslo)
A26: Po | B26: 06:30:00 | C26: 12:30:00 | D26: 13:00:00 | E26: 17:00:00 | F26: =24*(E26-D26+C26-B26) -> 10
A27: Út | B27: 07:30:00 | C27: 14:00:00 | D27: 14:30:00 | E27: 17:00:00 | F27: =24*(E27-D27+C27-B27) -> 9
A28: St | B28: 08:00:00 | C28: 12:00:00 | D28: 12:30:00 | E28: 13:30:00 | F28: 5
A29: Čt | B29: 08:00:00 | C29: 12:00:00 | D29: 12:30:00 | E29: 13:30:00 | F29: 5
A30: Pá | B30: 06:30:00 | C30: 12:00:00 | D30: 12:30:00 | E30: 18:00:00 | F30: 11
A31: Celkem týdně: | F31: =SUM(F26:F30) -> 40

Sheet DochList
A3: Podklad pro evidenci odpracované doby v režimu pružné pracovní doby
B5: =UPPER(rgPrijmeniZam)&" "&rgJmenoZam -> NOVÁK Jan | J5: =rgZarazZam -> AP
B6: příjmení a jméno | J6: pracovní zařazení (THP, AP, D)
B8: Institut geologického inženýrství | J8: 541
B9: útvar | J9: číslo
B11: =DATE(rgPozadRok,rgPozadMesic,1) -> 2021-01-01 | C11: =DATE(rgPozadRok,rgPozadMesic,1) -> 2021-01-01 | D11: =DATE(rgPozadRok,rgPozadMesic,1) -> 2021-01-01 | E11: =DATE(rgPozadRok,rgPozadMesic,1) -> 2021-01-01 | F11: =DATE(rgPozadRok,rgPozadMesic,1) -> 2021-01-01 | J11: =rgPozadRok -> 2021
B12: měsíc | J12: rok
B14: =TEXT(rgPPDod,"hh:mm")&" - "&TEXT(rgPPDdo,"hh:mm") -> 08:00 - 13:30 | C14: =TEXT(rgPPDod,"hh:mm") -> 08:00 | D14: =TEXT(rgPPDod,"hh:mm") -> 08:00 | E14: =TEXT(rgPPDod,"hh:mm") -> 08:00 | F14: =TEXT(rgPPDod,"hh:mm") -> 08:00 | G14: =TEXT(rgPrestZac,"hh:mm")&" - "&TEXT(rgPrestKon,"hh:mm") -> 11:30 - 12:00 | J14: =rgPracZam -> A-999
B15: základní pracovní doba | G15: Přestávka na jídlo | J15: stálé pracoviště
A18: dat. | B18: Příchod | C18: NEPŘÍTOMNOST | F18: Přestávka | H18: Odchod | I18: Odprac. doba | J18: Omluv. nepřít. | K18: Nahraz. doba | L18: Práce přesčas | M18: Týdně | N18: Poznámky
C19: odch. | D19: přích. | E19: důvod | F19: od | G19: do
A20: 1 | B20: Svátek | I20: 8 | N20: Nový Rok
A21: 2 | B21: Sobota
A22: 3 | B22: Neděle | M22: =SUM(I20:L22) -> 8
A23: 4 | B23: 06:10:00 | F23: 12:20:00 | G23: 12:50:00 | H23: 17:20:00 | I23: 10
A24: 5 | B24: 07:10:00 | F24: 13:55:00 | G24: 14:25:00 | H24: 17:15:00 | I24: 9
A25: 6 | B25: 07:55:00 | F25: 11:40:00 | G25: 12:10:00 | H25: 13:40:00 | I25: 5
A26: 7 | B26: 07:50:00 | F26: 11:45:00 | G26: 12:15:00 | H26: 13:50:00 | I26: 5
A27: 8 | B27: 06:10:00 | F27: 11:45:00 | G27: 12:15:00 | H27: 18:05:00 | I27: 11
A28: 9 | B28: Sobota
A29: 10 | B29: Neděle | M29: =SUM(I23:L29) -> 40
A30: 11 | B30: 06:20:00 | F30: 12:10:00 | G30: 12:40:00 | H30: 17:05:00 | I30: 10
A31: 12 | B31: 07:25:00 | F31: 13:45:00 | G31: 14:15:00 | H31: 17:10:00 | I31: 9
A32: 13 | B32: 07:55:00 | F32: 11:55:00 | G32: 12:25:00 | H32: 13:50:00 | I32: 5
A33: 14 | B33: 07:55:00 | F33: 11:40:00 | G33: 12:10:00 | H33: 13:50:00 | I33: 5
A34: 15 | B34: 06:10:00 | F34: 11:55:00 | G34: 12:25:00 | H34: 18:05:00 | I34: 11
A35: 16 | B35: Sobota
A36: 17 | B36: Neděle | M36: =SUM(I30:L36) -> 40
A37: 18 | B37: 06:20:00 | F37: 12:10:00 | G37: 12:40:00 | H37: 17:15:00 | I37: 10
A38: 19 | B38: 07:15:00 | F38: 13:55:00 | G38: 14:25:00 | H38: 17:15:00 | I38: 9
A39: 20 | B39: 07:40:00 | F39: 11:40:00 | G39: 12:10:00 | H39: 13:45:00 | I39: 5
A40: 21 | B40: 07:50:00 | F40: 11:45:00 | G40: 12:15:00 | H40: 13:45:00 | I40: 5
A41: 22 | B41: 06:20:00 | F41: 11:50:00 | G41: 12:20:00 | H41: 18:15:00 | I41: 11
A42: 23 | B42: Sobota
A43: 24 | B43: Neděle | M43: =SUM(I37:L43) -> 40
A44: 25 | B44: 06:10:00 | F44: 12:20:00 | G44: 12:50:00 | H44: 17:15:00 | I44: 10
A45: 26 | B45: 07:15:00 | F45: 13:55:00 | G45: 14:25:00 | H45: 17:10:00 | I45: 9
A46: 27 | B46: 07:55:00 | F46: 11:45:00 | G46: 12:15:00 | H46: 13:45:00 | I46: 5
A47: 28 | B47: 07:45:00 | F47: 11:50:00 | G47: 12:20:00 | H47: 13:45:00 | I47: 5
A48: 29 | B48: 06:25:00 | F48: 11:50:00 | G48: 12:20:00 | H48: 18:15:00 | I48: 11
A49: 30 | B49: Sobota
A50: 31 | B50: Neděle | M50: =SUM(I44:L50) -> 40
A51: Podpis zaměstnance: | E51: Celkem: | I51: =SUM(I20:I50) -> 168 | J51: =SUM(J20:J50) -> 0 | K51: =SUM(K20:K50) -> 0 | L51: =SUM(L20:L50) -> 0 | M51: =SUM(M20:M50) -> 168
E52: Celkem: | I52: =rgCelkOdprac+rgCelkOmluv+rgCelkNahraz+rgCelkPres -> 168
E53: Plán.počet hodin. | I53: 168 | M53: Dif. | N53: =rgPlanHodin-rgCelkHodin -> 0
E54: Podpis pověřeného zaměstnance: | I54: Podpis vedoucího

Sheet DataRoku (hidden)
A1: Data roku | C1: =rgPozadRok -> 2021
A3: A. Fond pracovní doby
A5: Std. pracovní doba 100% úvazku [hod]: | D5: 8
A6: Délka povinné přestávky [min]: | D6: 30
A9: Měsíc | B9: Dnů | C9: Svátků | D9: Hodin
A10: 1 | B10: 20 | C10: 1 | D10: =rgStdPracDoba*(B10+C10) -> 168 | F10: =rgStdPracDoba*B10 -> 160 | G10: =rgStdPracDoba*C10 -> 8
A11: 2 | B11: 20 | C11: 0 | D11: 160 | F11: 160 | G11: 0
A12: 3 | B12: 23 | C12: 0 | D12: 184 | F12: 184 | G12: 0 | I12: =SUM(F10:F12) -> 504 | J12: =SUM(G10:G12) -> 8
A13: 4 | B13: 20 | C13: 2 | D13: 176 | F13: 160 | G13: 16
A14: 5 | B14: 21 | C14: 0 | D14: 168 | F14: 168 | G14: 0
A15: 6 | B15: 22 | C15: 0 | D15: 176 | F15: 176 | G15: 0 | I15: =SUM(F13:F15) -> 504 | J15: =SUM(G13:G15) -> 16
A16: 7 | B16: 20 | C16: 2 | D16: 176 | F16: 160 | G16: 16
A17: 8 | B17: 22 | C17: 0 | D17: 176 | F17: 176 | G17: 0
A18: 9 | B18: 21 | C18: 1 | D18: 176 | F18: 168 | G18: 8 | I18: =SUM(F16:F18) -> 504 | J18: =SUM(G16:G18) -> 24
A19: 10 | B19: 20 | C19: 1 | D19: 168 | F19: 160 | G19: 8
A20: 11 | B20: 21 | C20: 1 | D20: 176 | F20: 168 | G20: 8
A21: 12 | B21: 22 | C21: 1 | D21: 184 | F21: 176 | G21: 8 | I21: =SUM(F19:F21) -> 504 | J21: =SUM(G19:G21) -> 24
A22: Celkem | B22: =SUM(B10:B21) -> 252 | C22: =SUM(C10:C21) -> 9 | D22: =SUM(D10:D21) -> 2088 | F22: =SUM(F10:F21) -> 2016
A25: B. Placené svátky
A27: Datum | B27: Svátek | C27: Sloupec1
A28: 2021-01-01 | B28: Nový Rok | C28: =A28 -> 2021-01-01
A29: 2021-04-02 | B29: Velký Pátek | C29: 2021-04-02
A30: 2021-04-05 | B30: Pondělí Velikonoční | C30: 2021-04-05
A31: 2021-05-01 | B31: Svátek Práce | C31: 2021-05-01
A32: 2021-05-08 | B32: Den vítězství | C32: 2021-05-08
A33: 2021-07-05 | B33: Věrozvěstové | C33: 2021-07-05
A34: 2021-07-06 | B34: Jan Hus | C34: 2021-07-06
A35: 2021-09-28 | B35: Česká státnost | C35: 2021-09-28
A36: 2021-10-28 | B36: Vznik ČSR | C36: 2021-10-28
A37: 2021-11-17 | B37: Den studentů | C37: 2021-11-17
A38: 2021-12-24 | B38: Štědrý den | C38: 2021-12-24
A39: 2021-12-25 | B39: 1. Svátek Vánoční | C39: 2021-12-25
A40: 2021-12-26 | B40: 2. Svátek Vánoční | C40: 2021-12-26

Sheet InfoProg (hidden)
A1: Název | B1: List | C1: Adresa
A2: DataRoku!_FilterDatabase | B2: DataRoku | C2: $A$27:$B$39
A3: rgDelkaPrestavky | B3: DataRoku | C3: $D$6
A4: rgFondPracDoby | B4: DataRoku | C4: $A$10:$D$21
A5: rgPlacSvatky | B5: DataRoku | C5: $A$28:$B$39
A6: rgStdPracDoba | B6: DataRoku | C6: $D$5
A7: DochList!Print_Area | B7: DochList | C7: $A$1:$N$55
A8: rgCelkHodin | B8: DochList | C8: $I$52
A9: rgCelkNahraz | B9: DochList | C9: $K$51
A10: rgCelkOdprac | B10: DochList | C10: $I$51
A11: rgCelkOmluv | B11: DochList | C11: $J$51
A12: rgCelkPres | B12: DochList | C12: $L$51
A13: rgCisloUtvaru | B13: DochList | C13: $J$8
A14: rgDochazka | B14: DochList | C14: $A$20:$N$50
A15: rgJmeno | B15: DochList | C15: $B$5
A16: rgMesic | B16: DochList | C16: $B$11
A17: rgNazevUtvaru | B17: DochList | C17: $B$8
A18: rgPlanHodin | B18: DochList | C18: $I$53
A19: rgPracoviste | B19: DochList | C19: $J$14
A20: rgPracZar | B20: DochList | C20: $J$5
A21: rgRok | B21: DochList | C21: $J$11
A22: rgRozdíl | B22: DochList | C22: $M$53
A23: rgCelkTydne | B23: Údaje | C23: $F$31
A24: rgDataVyuky | B24: Údaje | C24: $B$26:$F$30
A25: rgFondPracDoby100 | B25: Údaje | C25: $B$6
A26: rgFondPracDocyUU | B26: Údaje | C26: $B$7
A27: rgJmenoZam | B27: Údaje | C27: $B$9
A28: rgPozadMesic | B28: Údaje | C28: $B$3
A29: rgPozadRok | B29: Údaje | C29: $B$4
A30: rgPPDdo | B30: Údaje | C30: $B$17
A31: rgPPDod | B31: Údaje | C31: $B$16
A32: rgPracZam | B32: Údaje | C32: $B$14
A33: rgPrestKon | B33: Údaje | C33: $B$21
A34: rgPrestZac | B34: Údaje | C34: $B$20
A35: rgPrijmeniZam | B35: Údaje | C35: $B$10
A36: rgStdDoba | B36: Údaje | C36: $B$23
A37: rgStdKon | B37: Údaje | C37: $B$22
A38: rgStdZac | B38: Údaje | C38: $B$19
A39: rgUvazek | B39: Údaje | C39: $B$13
A40: rgVyuka | B40: Údaje | C40: $A$25:$F$30
A41: rgZarazZam | B41: Údaje | C41: $B$12
A42: Údaje!Print_Area | B42: Údaje | C42: $A$1:$F$31
